bitfinex/quotes_SOLUSD_20240821
["timestamp","ask_amount","ask_price","bid_price","bid_amount"]
[1724271152691,6.9341,144.22,144.15,6.026]
[1724271153269,6.9344,144.21,144.15,6.026]
[1724271153672,45.0,144.2,144.15,6.026]
[1724271154495,45.0,144.21,144.15,6.026]
[1724271155071,45.0,144.22,144.15,6.026]
[1724271155467,51.9339,144.22,144.15,6.026]
[1724271156795,45.0,144.22,144.15,6.026]
[1724271157700,77.36,144.22,144.15,6.026]
[1724271158075,84.294,144.22,144.15,6.026]
[1724271158700,77.36,144.22,144.15,6.026]
[1724271160884,45.0,144.22,144.15,6.026]
[1724271163516,51.9339,144.22,144.15,6.026]
[1724271163810,84.2939,144.22,144.15,6.026]
[1724271164119,77.36,144.22,144.15,6.026]
[1724271165188,84.2938,144.22,144.15,6.026]
[1724271166325,6.9344,144.21,144.15,6.026]
[1724271166620,45.0,144.2,144.15,6.026]
[1724271166797,84.2939,144.22,144.15,6.026]
[1724271167009,39.2961,144.18,144.15,6.026]
[1724271167314,46.73436159,144.17,144.15,6.026]
[1724271168827,45.0,144.17,144.15,6.026]
[1724271171820,46.73439083,144.17,144.15,6.026]
[1724271173220,32.36,144.16,144.11,6.2649]
[1724271173402,46.73457688,144.15,144.11,6.2649]
[1724271173725,1.73468193,144.14,144.11,6.2649]
[1724271174101,32.36,144.14,144.11,6.2649]
[1724271174414,45.0,144.13,144.11,6.2649]
[1724271175225,51.9383,144.13,144.11,6.2649]
[1724271175426,51.9383,144.13,144.09,1.73654445]
[1724271175427,41.03356303,144.12,144.09,1.73654445]
[1724271175727,41.03356303,144.12,144.08,6.5194]
[1724271175728,45.0,144.11,144.08,6.5194]
[1724271177008,45.0,144.12,144.08,6.5194]
[1724271177809,46.73497949,144.12,144.08,6.5194]
[1724271178599,45.0,144.12,144.08,6.5194]
[1724271179004,45.0,144.13,144.08,6.5194]
[1724271179307,32.36,144.16,144.08,6.5194]
[1724271179714,39.2971,144.16,144.08,6.5194]
[1724271180027,6.9374,144.15,144.08,6.5194]
[1724271180397,39.2977,144.14,144.08,6.5194]
[1724271180596,45.0,144.13,144.08,6.5194]
[1724271180814,51.9382,144.13,144.08,6.5194]
[1724271181198,45.0,144.13,144.08,6.5194]
[1724271181825,51.9383,144.13,144.08,6.5194]
[1724271182209,45.0,144.13,144.08,6.5194]
[1724271183001,6.9368,144.16,144.08,6.5194]
[1724271183719,6.9363,144.17,144.08,6.5194]
[1724271184027,39.2959,144.18,144.08,6.5194]
[1724271184325,32.36,144.18,144.09,1.38755807]
[1724271184500,32.36,144.18,144.08,38.8794]
[1724271185409,39.2959,144.18,144.08,38.8794]
[1724271185705,45.0,144.17,144.08,38.8794]
[1724271185904,45.0,144.17,144.11,6.503]
[1724271186123,45.0,144.18,144.11,7.89047483]
[1724271186706,6.9346,144.21,144.11,6.503]
[1724271186914,39.2939,144.22,144.11,6.503]
[1724271187917,32.36,144.22,144.12,32.36]
[1724271188119,39.293,144.24,144.14,32.36]
[1724271188635,32.36,144.26,144.16,32.36]
[1724271188951,32.36,144.26,144.16,47.9668]
[1724271189513,257.81234179,144.3,144.18,32.36]
[1724271189709,257.81234179,144.3,144.2,22.1098]
[1724271189710,32.36,144.3,144.2,22.1098]
[1724271189911,6.9305,144.29,144.2,22.1098]
[1724271191114,39.29,144.3,144.2,22.1098]
[1724271191320,32.36,144.3,144.2,22.1098]
[1724271192737,1.73304642,144.29,144.2,22.1098]
[1724271193042,32.36,144.3,144.2,22.1098]
[1724271193512,1.73316888,144.29,144.2,22.1098]
[1724271193712,46.73316888,144.29,144.2,22.1098]
[1724271194319,32.36,144.28,144.2,22.1098]
[1724271194637,45.0,144.27,144.2,22.1098]
[1724271196340,34.09316825,144.26,144.2,22.1098]
[1724271196948,45.0,144.25,144.2,54.4698]
[1724271197121,32.36,144.33,144.22,32.36]
[1724271197519,6.9291,144.32,144.23,22.7008]
[1724271199122,6.9295,144.31,144.23,22.7008]
[1724271199520,6.9301,144.3,144.23,22.7008]
[1724271199740,45.0,144.29,144.23,22.7008]
[1724271200658,1.73289526,144.28,144.23,22.7008]
[1724271200959,51.9306,144.29,144.23,22.7008]
[1724271201251,6.9311,144.28,144.23,22.7008]
[1724271201449,45.0,144.27,144.23,22.7008]
[1724271201644,6.931,144.28,144.23,22.7008]
[1724271201834,46.73314741,144.27,144.23,22.7008]
[1724271202140,1.73319462,144.26,144.23,22.7008]
[1724271202543,8.66509462,144.26,144.23,22.2008]
[1724271202720,45.0,144.25,144.23,22.2008]
[1724271203338,8.6661274,144.24,144.23,6.3621]
[1724271203536,51.9328,144.24,144.23,6.3621]
[1724271203849,6.9334,144.23,144.14,6.3621]
[1724271204053,46.73373975,144.22,144.14,6.3621]
[1724271204439,45.0,144.22,144.14,6.3621]
[1724271205537,1.73372349,144.21,144.15,16.3387]
[1724271205718,51.9339,144.22,144.15,16.3387]
[1724271209161,34.09387799,144.21,144.15,16.3387]
[1724271209351,6.9353,144.19,144.15,16.3387]
[1724271209755,45.0,144.18,144.15,16.3387]
[1724271210264,6.9353,144.19,144.15,16.3387]
[1724271210573,32.36,144.24,144.15,16.3387]
[1724271211456,6.9347,144.21,144.15,16.3387]
[1724271211660,32.36,144.22,144.15,16.3387]
[1724271211661,6.9357,144.18,144.15,16.3387]
[1724271212249,6.9365,144.17,144.15,16.3387]
[1724271212455,6.9358,144.18,144.15,16.3387]
[1724271212657,6.9354,144.19,144.15,16.3387]
[1724271212847,77.36,144.2,144.15,16.3387]
[1724271212848,51.9349,144.2,144.15,16.3387]
[1724271213048,6.9343,144.21,144.15,16.3387]
[1724271213449,45.0,144.2,144.15,16.3387]
[1724271215349,6.9343,144.21,144.15,16.3387]
[1724271215551,32.36,144.23,144.15,16.3387]
[1724271215552,6.9339,144.22,144.15,16.3387]
[1724271215750,6.9333,144.24,144.15,16.3387]
[1724271216065,6.9334,144.23,144.15,16.3387]
[1724271216971,32.36,144.25,144.15,16.3387]
[1724271217268,6.9338,144.22,144.15,16.3387]
[1724271219172,6.9335,144.23,144.15,16.3387]
[1724271219551,45.0,144.24,144.15,16.3387]
[1724271219752,0.25098,144.23,144.15,16.3387]
[1724271220073,6.9342,144.22,144.15,16.3387]
[1724271220249,45.0,144.21,144.15,16.3387]
[1724271220575,51.9343,144.21,144.15,16.3387]
[1724271221750,45.0,144.21,144.15,16.3387]
[1724271221950,45.0,144.22,144.15,16.3387]
[1724271222151,39.2937,144.23,144.15,16.3387]
[1724271224561,6.9338,144.22,144.15,16.3387]
[1724271225683,39.2935,144.23,144.15,16.3387]
[1724271227884,6.9338,144.22,144.15,16.3387]
[1724271228261,6.9343,144.21,144.15,16.3387]
[1724271228466,6.9349,144.2,144.15,16.3387]
[1724271228663,51.9349,144.2,144.15,16.3387]
[1724271229486,51.9349,144.2,144.14,6.3621]
[1724271229487,32.36,144.19,144.14,6.3621]
[1724271229698,32.36,144.17,144.14,6.3621]
[1724271230190,39.2953,144.19,144.14,6.3621]
[1724271231269,6.9359,144.18,144.14,6.3621]
[1724271232685,39.2953,144.19,144.14,6.3621]
[1724271232891,39.2944,144.21,144.14,6.3621]
[1724271233389,17.3303,144.26,144.14,6.3621]
[1724271233390,6.9338,144.22,144.14,6.3621]
[1724271234988,6.9346,144.21,144.14,6.3621]
[1724271235785,32.36,144.23,144.14,6.3621]
[1724271235996,45.0,144.22,144.14,6.3621]
[1724271236191,6.9339,144.22,144.14,6.3621]
[1724271237467,32.36,144.23,144.14,6.3621]
[1724271237664,39.2937,144.23,144.14,6.3621]
[1724271238286,6.9339,144.22,144.14,6.3621]
[1724271238596,32.36,144.23,144.14,6.3621]
[1724271238597,6.9343,144.21,144.14,6.3621]
[1724271238778,6.9349,144.2,144.14,6.3621]
[1724271238989,45.0,144.22,144.14,6.3621]
[1724271238990,51.9342,144.22,144.14,6.3621]
[1724271239288,6.9342,144.22,144.14,6.3621]
[1724271239683,6.9343,144.21,144.14,6.3621]
[1724271240196,6.9339,144.22,144.14,6.3621]
[1724271240377,6.9339,144.22,144.15,16.2525]
[1724271240874,32.36,144.23,144.15,16.2525]
[1724271240875,39.2934,144.23,144.15,16.2525]
[1724271241275,32.36,144.25,144.16,6.4413]
[1724271241578,6.9322,144.26,144.17,32.61098]
[1724271241787,6.9324,144.25,144.18,22.6938]
[1724271242692,6.9319,144.26,144.18,22.6938]
[1724271243614,6.9315,144.27,144.19,6.062]
[1724271244398,6.9319,144.26,144.19,6.062]
[1724271244795,39.2919,144.26,144.19,6.062]
[1724271246001,6.9326,144.25,144.19,6.062]
[1724271248489,32.36,144.26,144.2,17.49581267]
[1724271248490,6.932,144.26,144.2,17.49581267]
[1724271248689,6.932,144.26,144.2,16.109]
[1724271250413,6.9326,144.25,144.2,16.109]
[1724271252497,1.73352479,144.24,144.2,16.109]
[1724271252714,6.9326,144.25,144.2,16.109]
[1724271253425,32.36,144.27,144.2,16.109]
[1724271253426,6.9319,144.26,144.2,16.109]
[1724271253801,39.2915,144.27,144.2,16.109]
[1724271254126,6.9315,144.27,144.2,16.109]
[1724271254514,19.8715,144.27,144.2,16.109]
[1724271254823,19.8715,144.27,144.21,1.3865698]
[1724271255538,12.94,144.22,144.2,17.84443614]
[1724271255698,1.85927298,144.26,144.19,6.062]
[1724271255905,19.8733,144.24,144.19,6.062]
[1724271256132,45.0,144.23,144.19,6.062]
[1724271256318,19.8733,144.24,144.19,6.062]
[1724271256624,6.9333,144.24,144.19,6.062]
[1724271259417,32.36,144.25,144.19,6.062]
[1724271259617,7.05779,144.26,144.19,6.062]
[1724271259618,6.9323,144.26,144.19,6.062]
[1724271259937,6.9314,144.27,144.2,16.1253]
[1724271261336,6.9305,144.29,144.21,6.2282]
[1724271261640,6.9305,144.29,144.22,1.38646388]
[1724271262430,6.9305,144.29,144.21,6.2282]
[1724271264063,20.93394179,144.33,144.2,48.61079]
[1724271264064,32.36,144.33,144.23,6.0657]
[1724271264265,6.929,144.32,144.25,6.0657]
[1724271264450,6.9286,144.33,144.25,6.0657]
[1724271264965,32.36,144.29,144.25,6.0657]
[1724271265262,1.73290488,144.28,144.25,6.0657]
[1724271265658,39.2915,144.27,144.25,6.0657]
[1724271265858,6.9319,144.26,144.25,6.0657]
[1724271266038,51.9319,144.26,144.22,6.0657]
[1724271266241,84.2926,144.25,144.22,6.0657]
[1724271266436,39.2926,144.25,144.22,6.0657]
[1724271268667,39.2918,144.27,144.22,6.0657]
[1724271268967,45.0,144.28,144.22,6.0657]
[1724271268968,6.931,144.28,144.22,6.0657]
[1724271270073,32.36,144.29,144.22,6.0657]
[1724271270251,39.2908,144.29,144.22,6.0657]
[1724271272779,6.9311,144.28,144.22,6.0657]
[1724271273080,45.0,144.27,144.22,6.0657]
[1724271274174,39.2905,144.29,144.22,6.0657]
[1724271275077,51.9311,144.28,144.22,6.0657]
[1724271275296,34.09320019,144.27,144.22,6.0657]
[1724271275474,32.36,144.25,144.22,6.0657]
[1724271275676,1.73341875,144.24,144.22,6.0657]
[1724271275864,32.36,144.25,144.22,6.0657]
[1724271276777,51.932,144.26,144.22,6.0657]
[1724271278770,6.9326,144.25,144.22,6.0657]
[1724271280078,51.932,144.26,144.22,6.0657]
[1724271280651,39.2927,144.25,144.22,6.0657]
[1724271280863,6.9329,144.24,144.22,6.0657]
[1724271281292,6.9333,144.23,144.22,6.0657]
[1724271281495,51.9333,144.23,144.22,6.0657]
[1724271281661,45.0,144.23,144.22,6.0657]
[1724271281861,6.933,144.24,144.22,6.0657]
[1724271282381,6.9333,144.23,144.22,6.0657]
[1724271283683,51.9333,144.23,144.22,6.0657]
[1724271284080,32.36,144.25,144.22,6.0657]
[1724271284081,0.12549,144.27,144.22,6.0657]
[1724271284384,6.932,144.26,144.22,6.0657]
[1724271284890,6.9325,144.25,144.22,6.0657]
[1724271285995,32.36,144.25,144.22,6.0657]
[1724271286285,51.933,144.24,144.22,6.0657]
[1724271291797,51.933,144.24,144.18,22.8361]
[1724271293098,32.36,144.25,144.18,22.8361]
[1724271293390,6.9325,144.25,144.18,22.8361]
[1724271294489,6.9329,144.24,144.18,22.8361]
[1724271294699,8.66640476,144.24,144.18,22.8361]
[1724271294875,32.36,144.25,144.18,22.8361]
[1724271295080,45.12549,144.24,144.18,22.8361]
[1724271295888,6.9335,144.23,144.18,22.8361]
[1724271296384,51.9329,144.24,144.18,22.8361]
[1724271296765,6.9334,144.23,144.18,22.8361]
[1724271296966,32.36,144.27,144.18,22.8361]
[1724271297176,32.36,144.29,144.18,56.58279343]
[1724271297396,6.9316,144.27,144.18,56.58279343]
[1724271298684,6.9316,144.27,144.18,55.1961]
[1724271299002,6.932,144.26,144.18,22.8361]
[1724271300779,7.23706647,144.3,144.22,6.0704]
[1724271300780,6.9304,144.3,144.22,6.0704]
[1724271300980,6.9295,144.31,144.22,6.0704]
[1724271301181,6.9291,144.32,144.23,16.3741]
[1724271301390,6.9291,144.32,144.24,6.0704]
[1724271301595,6.9296,144.31,144.24,6.0704]
[1724271301909,6.929,144.32,144.24,6.0704]
[1724271302606,39.2886,144.33,144.24,6.0704]
[1724271302782,39.2886,144.33,144.25,0.12549]
[1724271303207,1.73255037,144.32,144.25,0.12549]
[1724271303614,261.1281,144.34,144.26,22.5142]
[1724271303791,32.36,144.37,144.26,22.5142]
[1724271303986,6.9277,144.35,144.26,22.5142]
[1724271304510,6.9271,144.36,144.26,22.5142]
[1724271304811,6.9271,144.36,144.28,6.6057]
[1724271307391,39.2876,144.35,144.28,6.6057]
[1724271308093,32.36,144.35,144.28,6.6057]
[1724271309111,39.2877,144.35,144.28,6.6057]
[1724271309789,8.66043699,144.34,144.28,6.6057]
[1724271310909,6.9281,144.34,144.28,6.6057]
[1724271311896,39.2877,144.35,144.28,6.6057]
[1724271312312,32.36,144.33,144.28,6.6057]
[1724271312509,8.66163427,144.32,144.28,6.6057]
[1724271313611,6.929,144.32,144.28,6.6057]
[1724271314705,39.2904,144.29,144.28,6.6057]
[1724271314892,32.36,144.29,144.24,6.5817]
[1724271315228,47.5491,144.34,144.24,6.5817]
[1724271315229,39.2924,144.25,144.24,6.5817]
[1724271315521,39.2924,144.25,144.22,16.091]
[1724271315522,6.9331,144.24,144.22,16.091]
[1724271315725,1.73357887,144.23,144.22,16.091]
[1724271315891,8.66667667,144.24,144.22,16.091]
[1724271316091,6.9319,144.26,144.22,16.091]
[1724271317017,17.3229,144.32,144.22,16.091]
[1724271317328,6.931,144.28,144.22,16.091]
[1724271317909,45.0,144.27,144.22,16.091]
[1724271318091,6.9319,144.26,144.22,16.091]
[1724271318297,1.73333368,144.25,144.22,16.091]
[1724271318516,6.9319,144.26,144.22,16.091]
[1724271320215,39.2914,144.27,144.22,16.091]
[1724271320418,32.36,144.25,144.22,16.091]
[1724271320729,32.36,144.23,144.2,6.5796]
[1724271321025,32.36,144.21,144.2,6.5796]
[1724271321222,6.9348,144.2,144.16,6.3876]
[1724271321395,1.73410863,144.19,144.16,6.3876]
[1724271321829,32.36,144.17,144.13,6.47]
[1724271322033,46.7346553,144.16,144.13,6.47]
[1724271322207,53.6714553,144.16,144.13,6.47]
[1724271322533,6.9376,144.14,144.13,6.47]
[1724271322703,53.67241309,144.14,144.11,15.3708]
[1724271322905,53.67241309,144.14,144.09,6.47]
[1724271323105,45.0,144.14,144.09,6.47]
[1724271323319,1.73478996,144.14,144.09,6.47]
[1724271324105,45.0,144.15,144.09,6.47]
[1724271324431,1.98584339,144.14,144.09,6.47]
[1724271324615,6.9383,144.13,144.09,6.47]
[1724271324799,46.73513209,144.12,144.09,6.47]
[1724271325131,53.67393209,144.12,144.09,6.47]
[1724271325432,1.73513209,144.12,144.09,6.47]
[1724271325638,51.9382,144.13,144.09,6.47]
[1724271325933,0.25098,144.14,144.09,6.47]
[1724271325934,40.51,144.18,144.09,6.47]
[1724271326138,6.9363,144.17,144.09,6.47]
[1724271327525,45.12549,144.16,144.09,6.47]
[1724271328615,1.73491424,144.15,144.09,6.47]
[1724271329437,45.12549,144.16,144.09,6.47]
[1724271334339,45.0,144.16,144.09,6.47]
[1724271334540,45.0,144.17,144.09,6.47]
[1724271336644,40.51,144.14,144.09,6.47]
[1724271336811,45.0,144.13,144.09,6.47]
[1724271337129,40.51,144.16,144.09,6.47]
[1724271337343,45.0,144.15,144.09,6.47]
[1724271337523,0.12549,144.17,144.09,6.47]
[1724271337709,45.12549,144.17,144.09,6.47]
[1724271341334,0.12549,144.17,144.09,6.47]
[1724271341952,40.51,144.22,144.11,6.5381]
[1724271342153,6.9342,144.22,144.11,48.4355211]
[1724271342328,47.75114498,144.24,144.12,21.6398]
[1724271342543,7.24114498,144.24,144.13,40.63549]
[1724271342764,7.24114498,144.24,144.14,6.5381]
[1724271342765,14.17434498,144.24,144.14,6.5381]
[1724271343061,40.51,144.23,144.14,6.5381]
[1724271343355,6.9342,144.22,144.14,6.5381]
[1724271343564,8.66847859,144.22,144.14,6.5381]
[1724271343866,47.4454,144.19,144.14,6.5381]
[1724271344063,0.12549,144.18,144.14,6.5381]
[1724271344227,45.12549,144.18,144.14,6.5381]
[1724271344661,6.9362,144.17,144.14,6.5381]
[1724271344835,45.0,144.16,144.14,6.5381]
[1724271345041,45.12549,144.18,144.14,6.5381]
[1724271345246,45.0,144.17,144.14,6.5381]
[1724271346251,45.12549,144.18,144.14,6.5381]
[1724271346654,45.12549,144.18,144.12,15.1017]
[1724271346831,45.12549,144.18,144.1,6.0928]
[1724271346832,6.938,144.14,144.1,6.0928]
[1724271347034,45.0,144.13,144.1,6.0928]
[1724271347460,45.0,144.13,144.01,7.24422686]
[1724271347461,32.38,144.11,144.06,6.5021]
[1724271347639,32.38,144.09,144.06,6.5021]
[1724271347839,39.3191,144.11,144.06,6.5021]
[1724271348157,32.38,144.07,143.99,6.3247]
[1724271348366,32.38,144.02,143.92,6.3247]
[1724271348543,1.73619337,144.01,143.92,6.3247]
[1724271348858,40.58,144.09,143.96,40.58]
[1724271349059,40.58,144.11,143.99,6.4092]
[1724271349431,6.9389,144.12,144.0,40.58]
[1724271349853,40.58,144.13,144.01,0.25098]
[1724271350052,40.58,144.13,144.01,20.25098]
[1724271350241,40.58,144.15,144.03,6.5879]
[1724271350444,40.58,144.15,144.04,20.25098]
[1724271350658,40.58,144.15,144.04,20.12549]
[1724271350860,40.58,144.13,144.04,20.0]
[1724271351365,40.58,144.11,144.03,6.5879]
[1724271352061,49.25445255,144.11,144.03,6.5879]
[1724271352251,46.73535255,144.1,144.03,6.5879]
[1724271352567,53.67509374,144.1,144.03,6.5879]
[1724271352748,40.58,144.06,144.03,6.5879]
[1724271353062,85.58,144.1,144.03,6.5879]
[1724271354050,45.0,144.1,144.03,6.5879]
[1724271354949,45.0,144.1,144.04,1.38831133]
[1724271355267,45.0,144.11,144.04,1.38831133]
[1724271355569,45.0,144.11,144.03,6.5879]
[1724271355570,1.73531234,144.1,144.03,6.5879]
[1724271356256,45.0,144.11,144.03,6.5879]
[1724271356436,0.12549,144.1,144.03,6.5879]
[1724271356865,7.06509,144.1,144.03,6.5879]
[1724271357072,45.0,144.09,144.03,6.5879]
[1724271357762,7.06509,144.1,144.03,6.5879]
[1724271358067,47.5187,144.12,144.03,6.5879]
[1724271358360,6.9368,144.16,144.05,40.58]
[1724271358664,40.58,144.18,144.07,6.034]
[1724271358850,40.58,144.18,144.08,1.38778965]
[1724271359055,6.937,144.16,144.07,6.034]
[1724271359767,40.58,144.16,144.07,6.034]
[1724271360064,6.9379,144.14,144.07,6.034]
[1724271361255,46.73496842,144.13,144.07,6.034]
[1724271361445,45.0,144.13,144.07,6.034]
[1724271361651,6.9387,144.12,144.07,6.034]
[1724271361852,6.9392,144.11,144.07,6.034]
[1724271362277,6.9401,144.09,144.04,15.5198]
[1724271362579,0.12549,144.14,144.05,1.38852337]
[1724271362751,0.12549,144.14,144.04,15.5198]
[1724271362752,40.58,144.17,144.04,15.5198]
[1724271363075,6.9368,144.16,144.05,6.4849]
[1724271363251,6.9373,144.15,144.05,6.4849]
[1724271363752,6.9373,144.15,144.06,0.25098]
[1724271363945,6.9368,144.16,144.06,0.25098]
[1724271364276,6.9368,144.16,144.06,40.83098]
[1724271364458,6.9363,144.17,144.07,6.6482]
[1724271364863,6.9363,144.17,144.08,1.38774964]
[1724271365667,47.81824475,144.19,144.08,1.38774964]
[1724271365668,6.9357,144.18,144.08,16.0379]
[1724271365868,6.9357,144.18,144.09,1.51310444]
[1724271366067,6.9363,144.17,144.08,16.0379]
[1724271366272,49.250972,144.17,144.16,0.1716396]
[1724271367252,94.250972,144.17,144.16,0.1716396]
[1724271367452,94.501952,144.17,144.16,0.1716396]
[1724271368277,92.76728,144.17,144.16,0.1716396]
[1724271368776,52.18728,144.17,144.16,0.1716396]
[1724271368946,17.3364,144.21,144.16,0.1716396]
[1724271369147,6.9356,144.19,144.16,0.1716396]
[1724271369372,6.9357,144.18,144.16,0.1716396]
[1724271369572,1.73430598,144.17,144.16,0.1716396]
[1724271369782,8.67070425,144.17,144.16,0.1716396]
[1724271370583,86.19619425,144.17,144.16,0.1716396]
[1724271370755,86.32168425,144.17,144.16,0.1716396]
[1724271371985,6.9391,144.11,144.1,6.5629]
[1724271372157,6.9391,144.11,144.08,16.0379]
[1724271373380,6.9385,144.13,144.08,16.0379]
[1724271373583,6.939,144.12,144.08,16.0379]
[1724271373784,6.9391,144.11,144.08,16.0379]
[1724271374175,6.9387,144.12,144.08,16.0379]
[1724271375358,6.938,144.14,144.08,16.0379]
[1724271375892,40.51,144.15,144.08,16.0379]
[1724271375893,40.51,144.11,144.08,16.0379]
[1724271376789,47.4494,144.11,144.08,16.0379]
[1724271378805,40.51,144.11,144.08,16.0379]
[1724271378998,6.94,144.1,144.06,6.4785]
[1724271379711,40.51,144.11,144.06,6.4785]
[1724271380116,6.9396,144.1,144.06,6.4785]
[1724271380449,6.9424,144.05,143.96,22.5028]
[1724271380784,6.9425,144.04,143.96,22.5028]
[1724271380982,6.943,144.03,143.96,22.5028]
[1724271381184,42.24583127,144.07,143.96,22.5028]
[1724271381408,45.0,144.06,143.96,22.5028]
[1724271382710,45.0,144.06,143.97,0.12549]
[1724271382884,6.9425,144.04,143.97,0.25098]
[1724271385215,42.24588,144.05,143.97,0.25098]
[1724271385409,49.18828,144.05,143.97,0.25098]
[1724271386430,47.453,144.03,143.97,0.25098]
[1724271386610,40.51,144.03,143.97,0.25098]
[1724271386813,6.9425,144.04,143.97,0.25098]
[1724271387123,8.67838257,144.04,143.97,0.25098]
[1724271387533,40.51,144.01,143.96,22.5028]
[1724271387733,40.51,143.99,143.96,22.5028]
[1724271388019,6.9454,143.98,143.96,22.5028]
[1724271388222,8.68190204,143.98,143.96,6.2575]
[1724271388436,47.4549,143.99,143.96,6.2575]
[1724271388607,8.68193515,143.98,143.96,6.2575]
[1724271390537,40.51,143.99,143.96,6.2575]
[1724271390739,40.63549,144.03,143.96,6.2575]
[1724271391625,6.9443,144.01,143.96,6.2575]
[1724271391935,15.4488,144.12,143.97,15.5281]
[1724271392237,40.51,144.09,143.98,6.058]
[1724271392728,6.9407,144.08,143.99,0.25098]
[1724271393238,47.4501,144.09,143.99,0.25098]
[1724271393416,6.9406,144.08,143.99,0.25098]
[1724271393811,40.51,144.13,144.01,15.5281]
[1724271394033,40.51,144.09,144.01,15.5281]
[1724271394334,47.4501,144.09,144.01,15.5281]
[1724271394522,40.51,144.07,144.01,15.5281]
[1724271394725,47.4515,144.07,144.01,15.5281]
[1724271394926,6.9415,144.06,144.01,15.5281]
[1724271395112,6.9409,144.08,144.01,15.5281]
[1724271395538,47.451,144.07,144.01,15.5281]
[1724271395712,1.73584301,144.06,144.01,15.5281]
[1724271396131,6.9416,144.06,144.01,15.5281]
[1724271397234,40.51,144.07,144.01,15.5281]
[1724271397442,40.51,144.04,144.0,6.058]
[1724271397644,47.4525,144.04,144.0,6.058]
[1724271397815,6.943,144.03,144.0,6.058]
[1724271400328,6.9449,143.99,143.95,6.058]
[1724271400530,1.73660565,143.98,143.95,6.058]
[1724271400734,39.4249,143.99,143.95,6.058]
[1724271401830,39.4249,143.99,143.95,2.058]
[1724271402426,6.9449,143.99,143.95,2.058]
[1724271402627,6.9444,144.0,143.95,2.058]
[1724271402828,40.59,144.04,143.96,1.38910497]
[1724271403033,17.3542,144.06,143.96,1.38910497]
[1724271403034,6.9421,144.05,143.96,1.38910497]
[1724271403240,6.9415,144.06,143.98,15.1184]
[1724271403442,7.24198066,144.09,143.98,15.1184]
[1724271403743,6.9405,144.09,143.99,46.63962541]
[1724271404045,6.9405,144.09,143.99,45.25098]
[1724271404258,6.9417,144.06,143.98,15.1184]
[1724271404444,40.59,144.1,143.98,15.1184]
[1724271404445,40.59,144.07,143.98,15.1184]
[1724271404625,40.59,144.03,143.98,15.1184]
[1724271404820,40.59,144.03,143.98,21.1789]
[1724271404821,8.67961346,144.02,143.98,21.1789]
[1724271405026,42.32632878,144.01,143.98,21.1789]
[1724271405221,40.59,144.01,143.98,6.0605]
[1724271405446,47.5344,144.01,143.98,6.0605]
[1724271405651,47.534,144.01,143.98,6.0605]
[1724271406049,1.73639385,144.0,143.98,6.0605]
[1724271406760,47.534,144.01,143.98,6.0605]
[1724271407123,6.9435,144.02,143.98,6.0605]
[1724271407434,6.9429,144.04,143.98,6.0605]
[1724271407636,6.9439,144.01,143.98,6.0605]
[1724271408022,6.9444,144.0,143.98,6.0605]
[1724271408227,6.944,144.01,143.98,6.0605]
[1724271410746,6.9435,144.02,143.98,6.0605]